Cogmind - Beta 17 @@@ ROGUE MODE // 2026.08.02 @ 02:23:19 Player: 4R-ZE3 Result: Self-destructed Performance ------------- Evolutions (1) 500 Regions Visited (5) 1000 Robots Destroyed (26) 130 Value Destroyed (692) 692 Prototype IDs (0) 0 Alien Tech Used (0) 0 Bonus (124) 124 TOTAL SCORE: 2446 Bonus ------- Follower Combat Kills 124 Cogmind --------- Core Integrity 265/400 Matter 300/300 Energy 125/125 System Corruption 0% Temperature Cool (0) Movement Treading (160) Location -9/Exiles Parts ------- > --- POWER (1) -------- Light Ion Engine > --- PROPULSION (3) --- Light Treads Light Treads Light Treads > --- UTILITY (3) ------ High-capacity Storage Unit Improved Propulsion Shielding Utility Shielding > --- WEAPON (2) ------- Heavy Assault Rifle Heavy Assault Rifle > --- INVENTORY (20) --- Light Ion Engine Light Ion Engine Light Treads Light Treads Combat Airjet Hacking Suite Light Assault Rifle Light Assault Rifle Light Assault Rifle Light Assault Rifle Heavy Assault Rifle Heavy Assault Rifle Heavy Assault Rifle Heavy Assault Rifle Heavy Assault Rifle Light Cannon Light Cannon Light Cannon Mini Grenade Launcher Peak State ------------ > --- POWER ------------ Light Ion Engine > --- PROPULSION ------- Light Treads Light Treads Light Treads > --- UTILITY ---------- High-capacity Storage Unit Improved Propulsion Shielding Utility Shielding > --- WEAPON ----------- Heavy Assault Rifle Heavy Assault Rifle > --- INVENTORY -------- Light Ion Engine Light Ion Engine Light Ion Engine Light Treads Light Treads Combat Airjet Improved Propulsion Shielding Hacking Suite Light Assault Rifle Light Assault Rifle Light Assault Rifle Light Assault Rifle Heavy Assault Rifle Heavy Assault Rifle Heavy Assault Rifle Heavy Assault Rifle Light Cannon Light Cannon Light Cannon [Rating: 16] Favorites ----------- Power Light Ion Engine Engine Light Ion Engine Power Core Light Nuclear Core Propulsion Light Treads Treads Light Treads Utility Utility Shielding Storage High-capacity Storage Unit Protection Utility Shielding Weapon Heavy Assault Rifle Energy Gun Medium Laser Ballistic Gun Heavy Assault Rifle Build | -11 -10 -10 -9 -9 -9 ------- Run | Yrd Mat Min Mat Min Exi Slots Evolved 2 | . . . 2 . . Power . | . . . . . . Propulsion 1 | . . . 1 . . Utility 1 | . . . 1 . . Weapon . | . . . . . . Parts Attached 27 | 6 2 4 13 2 . Power 4 | 1 . 1 1 1 . Engine 3 | 1 . . 1 1 . Core 1 | . . 1 . . . Reactor . | . . . . . . Propulsion 7 | 2 . 2 3 . . Treads 7 | 2 . 2 3 . . Leg . | . . . . . . Wheel . | . . . . . . Hover . | . . . . . . Flight . | . . . . . . Utility 6 | 1 2 . 2 1 . Device . | . . . . . . Storage 2 | 1 1 . . . . Processor . | . . . . . . Hackware . | . . . . . . Protection 4 | . 1 . 2 1 . Artifact . | . . . . . . Weapon 10 | 2 . 1 7 . . Energy Gun 1 | 1 . . . . . Energy Cannon . | . . . . . . Ballistic Gun 9 | 1 . 1 7 . . Ballistic Cannon . | . . . . . . Launcher . | . . . . . . Special Weapon . | . . . . . . Impact Weapon . | . . . . . . Slashing Weapon . | . . . . . . Piercing Weapon . | . . . . . . Special Melee Weapon . | . . . . . . Unidentified Prototypes . | . . . . . . Parts Lost 9 | . . 4 3 2 . Power 3 | . . 1 1 1 . Propulsion 2 | . . 2 . . . Utility 2 | . . . 1 1 . Weapon 2 | . . 1 1 . . Highest Loss Streak 4 | . . 4 1 1 . To Critical Strikes 1 | . . 1 . . . Average Backups 14 | . 5 12 15 19 19 Power 1 | . . . 1 2 2 Propulsion 2 | . 1 2 1 3 3 Utility 1 | . . 1 3 1 1 Weapon 9 | . 3 8 8 12 13 Tool/Special . | . . . . . . Unused Backups 20 | 1 . . 5 . 14 Power 2 | . . . . . 2 Propulsion 3 | 1 . . . . 2 Utility 2 | . . . 1 . 1 Weapon 13 | . . . 4 . 9 Tool/Special . | . . . . . . Average Slot Usage (%) 96 | . 93 97 95 96 100 Engine 10 | . 14 10 9 10 11 Treads 31 | . 28 27 33 33 33 Storage 11 | . 14 14 11 11 11 Protection 17 | . 8 14 19 19 22 Energy Gun 2 | . 14 7 . . . Ballistic Gun 20 | . 14 19 22 22 22 Peak Build Rating 16 | 6 8 10 16 16 16 Average Rating 12 | 5 6 8 12 15 16 On Entrance 9 | . 6 8 8 16 16 Avg Prop Armor Cover (%) . | . . . . . . Naked Turns . | . . . . . . Heaviest Build 52 | 12 48 50 52 52 52 Greatest Support 60 | 40 40 40 60 60 60 Greatest Overweight (x) 1 | . 1 1 . . . Average Overweight (x) . | . . 1 . . . Largest Inventory Capacity 20 | 8 20 20 20 20 20 Average Capacity 18 | 7 10 20 20 20 20 Most Carried 20 | 1 13 14 20 20 19 Average Carried 15 | . 5 12 15 19 19 Final Capacity 20 | 8 20 20 20 20 20 Final Carried 20 | . 13 11 20 19 19 Class Distribution -------------------- 93% | Mutant 6% | Scavenger-Mutant Dominant Class ---------------- Mutant | -10/Materials Mutant | -10/Mines Mutant | -9/Materials Mutant | -9/Mines Mutant | -9/Exiles Resources | -11 -10 -10 -9 -9 -9 ----------- Run | Yrd Mat Min Mat Min Exi Matter Collected 821 | 248 92 78 160 243 . Remotely . | . . . . . . Salvage Created 891 | . 202 112 337 240 . Parts 57 | . 12 6 28 11 . Haulers Intercepted 2 | . 1 . 1 . . Recyclers Shooed . | . . . . . . Parts Field Recycled . | . . . . . . Retrieved Matter . | . . . . . . Parts Self-Destructed . | . . . . . . Prevented . | . . . . . . Parts Restored . | . . . . . . Kills | -11 -10 -10 -9 -9 -9 ------- Run | Yrd Mat Min Mat Min Exi Combat Hostiles Destroyed 23 | . 4 3 10 6 . Guns 23 | . 4 3 10 6 . Classes Destroyed 6 | . 2 1 3 . . Hauler 2 | . 1 . 1 . . Operator 1 | . . . 1 . . Swarmer 7 | . . . 7 . . Grunt 11 | . 4 2 . 5 . Sentry 3 | . . . 3 . . Demolisher 1 | . . 1 . . . Best Kill Streak 3 | . 2 2 3 3 . Combat Bots Only 3 | . 2 2 3 3 . Max Kills in Single Turn 1 | . 1 1 1 1 . Gunslinging . | . . . . . . Exploded . | . . . . . . Melee . | . . . . . . Uniques/NPCs Destroyed 1 | . . . . 1 . YI-UF0 (-9/Mines) Combat | -11 -10 -10 -9 -9 -9 -------- Run | Yrd Mat Min Mat Min Exi Hostile Shots Fired 156 | . 25 26 64 41 . Missed 42 | . 7 7 16 12 . Hits 114 | . 18 19 48 29 . Projectile 114 | . 18 19 48 29 . AOE 16 | . . 5 . 11 . Critical Strikes 1 | . . 1 . . . Damage Taken 1694 | . 196 401 493 604 . Core 213 | . 33 45 58 77 . Absorbed by Shields . | . . . . . . Redirected to Shielding 228 | . . 5 109 114 . Core Remaining (%) 84 | 100 . 68 . . . Volleys Fired 100 | . 20 13 42 25 . Largest 2 | . 2 2 2 2 . Hottest 70 | . 70 70 46 46 . Shots Fired 198 | . 40 24 84 50 . Gun 198 | . 40 24 84 50 . Cannon . | . . . . . . Launcher . | . . . . . . Special . | . . . . . . Kinetic 167 | . 20 13 84 50 . Thermal 31 | . 20 11 . . . Explosive . | . . . . . . Electromagnetic . | . . . . . . Robot Hit Streak 11 | . 6 8 11 5 . Robot Miss Streak 3 | . 2 2 3 3 . Penetration Max . | . . . . . . Secondary Targets 1 | . . 1 . . . Max Gunslinging Chain 1 | . . 1 . . . Shots Hit Robots 134 | . 28 17 57 32 . Core Hits 50 | . 10 8 21 11 . Critical Kills 1 | . . . 1 . . Critical Parts Destroyed . | . . . . . . Critical Strikes 2 | . . 1 1 . . Burn 1 | . . 1 . . . Destroy 1 | . . . 1 . . Melee Attacks . | . . . . . . Impact . | . . . . . . Slashing . | . . . . . . Piercing . | . . . . . . Sneak Attacks . | . . . . . . Combat Hostiles . | . . . . . . Follow-up Attacks . | . . . . . . Damage Inflicted 1597 | . 358 235 526 478 . Guns 1597 | . 358 235 526 478 . Cannons . | . . . . . . Explosions . | . . . . . . Melee . | . . . . . . Ramming . | . . . . . . Kinetic 1283 | . 159 120 526 478 . Thermal 314 | . 199 115 . . . Explosive . | . . . . . . Electromagnetic . | . . . . . . Impact . | . . . . . . Slashing . | . . . . . . Piercing . | . . . . . . Highest Corruption . | . . . . . . Average Corruption . | . . . . . . Corruption Purged . | . . . . . . Corruption Blocked . | . . . . . . Overload Shots . | . . . . . . Overflow Damage . | . . . . . . Projectiles . | . . . . . . Explosions . | . . . . . . Melee . | . . . . . . Knockbacks . | . . . . . . Impact . | . . . . . . Kinetic . | . . . . . . Secondary . | . . . . . . Self-Inflicted Damage . | . . . . . . Shots . | . . . . . . Rammed . | . . . . . . Targets Rammed . | . . . . . . Kicked . | . . . . . . Crushed . | . . . . . . Highest Temperature 204 | . 105 204 6 7 . Average Temperature 51 | . 35 98 4 1 . Received Heat Transfer 500 | . 108 155 81 156 . Siege Activations . | . . . . . . Martial Activations . | . . . . . . Shielding Activations . | . . . . . . Robots Disrupted . | . . . . . . Combat Hostiles . | . . . . . . Robots Corrupted . | . . . . . . Combat Hostiles . | . . . . . . Parts Fried . | . . . . . . Impact Corruptions . | . . . . . . Robots Melted . | . . . . . . Combat Hostiles . | . . . . . . Parts Melted 6 | . 3 3 . . . Heat Transferred 999 | . 592 407 . . . Parts Sabotaged . | . . . . . . Parts Stolen . | . . . . . . Parts Stripped . | . . . . . . Power Chain Reactions . | . . . . . . Alert | -11 -10 -10 -9 -9 -9 ------- Run | Yrd Mat Min Mat Min Exi Maximum Alert Level . | . . . . . . Low Security (%) 100 | 100 100 100 100 100 . Level 1 . | . . . . . . Level 2 . | . . . . . . Level 3 . | . . . . . . Level 4 . | . . . . . . Level 5 . | . . . . . . High Security . | . . . . . . Max Security . | . . . . . . Peak Influence 128 | . 76 128 114 76 . Initial 27 | . . . 27 16 . Average 33 | . 25 69 60 11 . Influence Increases 844 | . 123 180 406 135 . Destroy 0b10 Robot/C 560 | . 80 140 240 100 . Destroy 0b10 Robot/NC 20 | . 5 . 15 . . Destroy Leader 136 | . 22 30 64 20 . Allied During Kill 15 | . . 10 5 . . Successful Hack 22 | . . . 22 . . Destroy Structure 1 | . 1 . . . . Lose Combat Pursuer 90 | . 15 . 60 15 . Influence Decreases 844 | . 123 110 432 179 . Entered New Map 71 | . . . 43 28 . Time Decay 673 | . 123 70 339 141 . Lost Part 80 | . . 40 30 10 . Lost Ally 20 | . . . 20 . . Squads Dispatched 4 | . 2 1 1 . . Investigation 1 | . . . 1 . . Extermination . | . . . . . . Reinforcement 2 | . 2 . . . . Assault 1 | . . 1 . . . Garrison . | . . . . . . Intercept . | . . . . . . Searches Triggered . | . . . . . . Construction Impeded . | . . . . . . Haulers Reinforced . | . . . . . . Active Scanning Responses . | . . . . . . Cargo Convoy Interrupts . | . . . . . . Stealth | -11 -10 -10 -9 -9 -9 --------- Run | Yrd Mat Min Mat Min Exi Distress Signals 5 | . 2 . 3 . . Communications Jammed . | . . . . . . Distress Signals . | . . . . . . Times Spotted 56 | . 6 17 27 6 . Peak Tracking Total 6 | . 2 6 5 2 . Tactical Retreats 5 | . 1 . 3 1 . Traps | -11 -10 -10 -9 -9 -9 ------- Run | Yrd Mat Min Mat Min Exi Traps Triggered 1 | . . . 1 . . Indirectly . | . . . . . . Trap Hack Attempts . | . . . . . . Triggered . | . . . . . . Disarmed . | . . . . . . Reprogrammed . | . . . . . . Reused . | . . . . . . Traps Extracted . | . . . . . . Installed . | . . . . . . Triggered . | . . . . . . Machines | -11 -10 -10 -9 -9 -9 ---------- Run | Yrd Mat Min Mat Min Exi Machines Disabled . | . . . . . . Max in Single Turn . | . . . . . . Machines Repaired . | . . . . . . Machines Dismantled . | . . . . . . Machines Sabotaged . | . . . . . . Overloaded Fab Kills . | . . . . . . Hacking | -11 -10 -10 -9 -9 -9 --------- Run | Yrd Mat Min Mat Min Exi Machines Accessed 8 | . 2 . 6 . . Terminals 5 | . 1 . 4 . . Fabricators . | . . . . . . Repair Stations . | . . . . . . Recycling Units 2 | . 1 . 1 . . Scanalyzers 1 | . . . 1 . . Garrison Access . | . . . . . . Total Hacks 15 | . 5 . 10 . . Successful 8 | . 3 . 5 . . Failed 6 | . 2 . 4 . . Catastrophic 1 | . . . 1 . . Database Lockouts 1 | . . . 1 . . Manual 8 | . 3 . 5 . . Terminals 9 | . 3 . 6 . . Fabricators . | . . . . . . Repair Stations . | . . . . . . Recycling Units 3 | . 2 . 1 . . Scanalyzers 3 | . . . 3 . . Garrison Access . | . . . . . . Terminal Hacks 5 | . 2 . 3 . . Robot Analysis 3 | . 2 . 1 . . Branch Access Points 1 | . . . 1 . . Alert Level 1 | . . . 1 . . Fabricator Hacks . | . . . . . . Repair Station Hacks . | . . . . . . Recycling Unit Hacks 2 | . 1 . 1 . . Retrieve Components 2 | . 1 . 1 . . Scanalyzer 1 | . . . 1 . . Retrieve Study 1 | . . . 1 . . Garrison Access Hacks . | . . . . . . Unauthorized Hacks . | . . . . . . Terminals . | . . . . . . Fabricators . | . . . . . . Repair Stations . | . . . . . . Recycling Units . | . . . . . . Scanalyzers . | . . . . . . Garrison Access . | . . . . . . Data Cores Recovered 1 | . . . 1 . . Used . | . . . . . . Hacking Detections 4 | . 2 . 2 . . Full Trace Events . | . . . . . . Feedback Events . | . . . . . . Feedback Blocked . | . . . . . . Robot Schematics Acquired . | . . . . . . Robots Built . | . . . . . . Authchips . | . . . . . . Time . | . . . . . . Total Robot Build Rating . | . . . . . . Part Schematics Acquired . | . . . . . . Parts Built . | . . . . . . Authchips . | . . . . . . Time . | . . . . . . Total Part Build Rating . | . . . . . . Part Studies Acquired 1 | . . . 1 . . Parts Repaired . | . . . . . . Time . | . . . . . . Parts Recycled . | . . . . . . Recycled Matter . | . . . . . . Retrieved Matter . | . . . . . . Retrieved Components 6 | . 4 . 2 . . Parts Scanalyzed . | . . . . . . Part Schematics Acquired . | . . . . . . Parts Damaged . | . . . . . . Bothacking | -11 -10 -10 -9 -9 -9 ------------ Run | Yrd Mat Min Mat Min Exi Used RIF Installer . | . . . . . . Robots Hacked . | . . . . . . Non-combat . | . . . . . . Combat . | . . . . . . Robot Hacks Applied . | . . . . . . Relay Couplers Released . | . . . . . . Fabnet Peak Effective % . | . . . . . . Robots Rewired . | . . . . . . Allies Hacked . | . . . . . . Hacks Repelled . | . . . . . . Allies | -11 -10 -10 -9 -9 -9 -------- Run | Yrd Mat Min Mat Min Exi Total Allies 4 | . . 1 . 3 . Largest Group 3 | . . 1 1 3 3 Highest-Rated Group 40 | . . 31 31 40 40 Highest-Rated Ally 31 | . . 31 31 16 16 Total Orders . | . . . . . . Ally Attacks 37 | . . 21 16 . . Total Damage 485 | . . 277 208 . . Kills 8 | . . 5 3 . . Allies Corrupted . | . . . . . . Allies Melted . | . . . . . . Intel | -11 -10 -10 -9 -9 -9 ------- Run | Yrd Mat Min Mat Min Exi Active Infowar (turns) . | . . . . . . Robot Analysis Total 3 | . 2 . 1 . . Derelict Logs Recovered 2 | . . . . 2 . Drone Launches . | . . . . . . Drone Recoveries . | . . . . . . Exploration | -11 -10 -10 -9 -9 -9 ------------- Run | Yrd Mat Min Mat Min Exi Turns Passed 2671 | 79 419 178 802 1029 164 Spaces Moved 1331 | 45 190 57 364 573 102 Core 2 | 2 . . . . . Treads 1329 | 43 190 57 364 573 102 Legs . | . . . . . . Wheels . | . . . . . . Hover . | . . . . . . Flight . | . . . . . . Fastest Speed 50 | 50 160 240 160 160 160 Average Speed 165 | 155 172 240 160 160 160 Slowest Speed 240 | 160 240 240 160 160 160 Overloaded Moves . | . . . . . . Propulsion Burnouts . | . . . . . . Robots Hopped . | . . . . . . Potential Cave-ins . | . . . . . . Cave-ins Triggered . | . . . . . . Exploration Rate (%) 42 | 3 43 22 52 98 39 Regions Visited 5 Branch Regions 3 Pre-discovered Areas . | . . . . . . Known Exits Taken 1 | . . . 1 . . Unknown Exits Taken 4 | 1 1 1 . 1 . Scrap Searched 1 | . . . . 1 . Spaces Dug . | . . . . . . Terrain Destroyed . | . . . . . . Melee . | . . . . . . Projectile . | . . . . . . AOE . | . . . . . . Terrain Rammed . | . . . . . . Walls Destroyed . | . . . . . . Machines Disabled . | . . . . . . Actions | -11 -10 -10 -9 -9 -9 --------- Run | Yrd Mat Min Mat Min Exi Total 1621 | 52 241 75 516 635 102 Wait 125 | . 17 . 73 35 . Move 1326 | 44 189 56 363 572 102 Hop . | . . . . . . Pick Up 31 | 1 13 1 15 1 . Fast Attach 8 | 6 . . 2 . . Attach 10 | . 1 4 3 2 . Detach . | . . . . . . Swap 10 | . 1 1 8 . . Drop 11 | 1 . . 10 . . Fire 100 | . 20 13 42 25 . Melee . | . . . . . . Ram . | . . . . . . Kick . | . . . . . . Crush . | . . . . . . Escape Stasis . | . . . . . . Rewire . | . . . . . . Trap . | . . . . . . Miscellaneous . | . . . . . . Route ------- -11/Scrapyard -10/Materials (discovered 4 exits: *Mat x2 / [*Min x2]) -10/Mines -9/Materials (discovered 3 exits: [*Mat] / *Min x2) -9/Mines (discovered 4 exits: [*Mat x2] / *Exi / [*Zio]) -9/Exiles History --------- Turn | Location | Event 2 | -11/Scrapyard | Met Revision 17 34 | -11/Scrapyard | Discovered new exit (range 15) 80 | -11/Scrapyard | Entered Materials 81 | -10/Materials | Met a group of wandering Federalists 181 | -10/Materials | Discovered new exit (range 8) 288 | -10/Materials | Discovered new exit (range 15) 301 | -10/Materials | Build established: Mutant 363 | -10/Materials | Discovered new exit (range 16) 413 | -10/Materials | Discovered new exit (range 12) 499 | -10/Materials | Entered Mines 500 | -10/Mines | Met a Derelict testing a Signal Generator 572 | -10/Mines | Assembled infested the area 577 | -10/Mines | Assisted by a Guerilla fighting off Assembled 633 | -10/Mines | Lost 4 parts (1p2n1w) 641 | -10/Mines | Discovered new exit (range 15) 677 | -10/Mines | Entered Materials 677 | -9/Materials | Accompanied by 1 ally 677 | -9/Materials | Evolved 2 slots: Propulsion x1, Utility x1 933 | -9/Materials | Discovered new exit (range 3) 1090 | -9/Materials | Identified exit to Mines 1216 | -9/Materials | Central database locked down 1479 | -9/Materials | Entered Mines 1657 | -9/Mines | Learned Materials trap positions 1711 | -9/Mines | A Derelict revealed a hidden shortcut to a safe place 2041 | -9/Mines | Destroyed YI-UF0 2055 | -9/Mines | Discovered new exit (range 14) 2249 | -9/Mines | Learned location of 1 exit from Materials 2442 | -9/Mines | Discovered new exit (range 11) 2458 | -9/Mines | Assisted by bots powering up and referring to "LRC-V3" 2500 | -9/Mines | Deemed a non-threat by the Exiles lab entrance 2501 | -9/Mines | Discovered new exit (range 5) 2508 | -9/Mines | Entered Exiles 2508 | -9/Exiles | Found Exiles lab abandoned 2508 | -9/Exiles | Accompanied by 3 allies 2672 | -9/Exiles | Self-destructed Last Messages --------------- 02119_ Acquired 26 matter. 02156_ K-01 Serf collects debris. 02249_ Acquired derelict log, extracted data. Data stored: Materials exits (x1). 02274_ Acquired 10 matter. 02428_ K-01 Serf cleans the Matter Pump. 02442_ EXIT=FOUND 02443_ K-01 Serf cleans the Matter Pump. 02458_ Trooper 2a: "Hello LRC-V3. What is your command?" 02458_ Mercenary 2a: "Hello LRC-V3. What is your command?" 02458_ Trooper 2b: "Hello LRC-V3. What is your command?" 02500_ "No threat detected, you may enter." 02501_ EXIT=FOUND LOCATION=UNKNOWN GOAL=ESCAPE 02672_ Connecting with EX-Prototypes Database... 02672_ Current location identified: Exiles Map ----- +----------------------------------------------------+ | | | | | | | | | | | | | | | | | | | | | | | | | | | | | | | | | | | | | | | | | | | | | ??????????????????????####?####??????????????????? | | ??????????????????????# # #??????????????????? | | ??????????????????????# X #??????????????????? | | ??????????????????????# @ #??????????????????? | | ??????????????????????# g #??????????????????? | | ??????????????????????## g ##??????????????????? | | ??????????????????????#X #???????????????????? | | ??????????????????????## #???????????????????? | | ???????????????????????# g #???????????????????? | | ???????????????????????# #???###?????????????? | | ???????????????????????# #??"""""????????????? | | ???????????????????????# ## """????????????? | | ???????????????????????# X""????????????? | | ???????????????????????# ## """????????????? | | ?????????????????####??# #??"""""????????????? | | ?????????????????"""""?# #???###?????????????? | | ????????????????"""" ## #???????????????????? | | ???????????????#""X" #???????????????????? | | ???????????????#" #???????????????????? | | ???????????????#" ## #???????????????????? | | ???????????????#""""""?# #???????????????????? | | ???????????????##"###??# #???"""""???????????? | | ???????????????????????# #??""""""???????????? | | ???????????????????????# #??"""""""??????????? | | ??????????????????????## ###"" """"??????????? | | ??????????????????????#" """"??????????? | | ??????????????????????#" """#?????????? | | ??????????????????????#" """#?????????? | +----------------------------------------------------+ Best States ------------- Heat Dissipation 28 Energy Generation 14 Energy Capacity 160 Matter Stores 300 Matter Capacity 300 Sight Range 16 Terrain Scan Density 10 Propulsion Shielding 66 Utility Shielding 33 Evasion (%) 40 Recoil Reduction 3 Item Schematics ----------------- None Robot Schematics ------------------ None Fabricated ------------ Nothing Repaired ---------- Nothing Studied --------- Lgt. Assault Rifle | -9/Materials | Hacked Alien Tech Used ----------------- None Achievements -------------- None Challenges ------------ None Game ------ Seed TowerShiftExtractor Manual? 0 Play Time 00:13:17 Cumulative 143.9 hours Start 2026.08.02 @ 02:08:28 End 2026.08.02 @ 02:23:19 Sessions 1 Manual Loads 0 Difficulty Rogue Special Mode None Game No. 156 Rogue 102 Adventurer 54 Explorer 0 Win Type - Total 7 Types 3/0/1/1/0/0/0/1/0/1 Lore% 59 Gallery% 54 Achievement% 52 Wizard Run 0 Options --------- Layout 1 ASCII 0 Keyboard 0 Movement Mouse Keybinds 1 Fullscreen 2 Font 32/Tamsyn Map View 50x35 Zoom Use 0% Tactical HUD 1 Map Filters NONE Filters NONE Steam 1 RUN: 9f82edf4-45cf-4473-9000-ba0f812834c5